bitfinex/quotes_ETHUSD_20241123
["timestamp","ask_amount","ask_price","bid_price","bid_amount"]
[1732329026342,0.27936162,3320.1,3319.6,0.2996]
[1732329026584,0.55,3320.5,3319.6,0.2996]
[1732329026870,0.55,3320.3,3319.6,0.2996]
[1732329027177,0.27933653,3320.2,3319.6,0.2996]
[1732329027470,0.55,3320.1,3319.6,0.2996]
[1732329027846,0.27934861,3320.0,3319.6,0.2996]
[1732329028033,0.55,3320.1,3319.6,0.2996]
[1732329028389,0.27934415,3320.0,3319.6,0.2996]
[1732329029772,0.55,3320.1,3319.8,0.2996]
[1732329033296,0.8018,3320.8,3319.8,0.2996]
[1732329033455,0.82944814,3320.7,3319.8,0.2996]
[1732329033655,0.55,3320.5,3319.8,0.2996]
[1732329033893,0.27944814,3320.4,3319.8,0.2996]
[1732329034104,0.27944814,3320.4,3319.2,0.2996]
[1732329034398,0.27944814,3320.4,3319.8,0.2996]
[1732329034599,0.27944814,3320.4,3319.9,0.7954]
[1732329034799,0.27944814,3320.4,3320.0,0.32971673]
[1732329035378,0.27944814,3320.4,3320.0,0.2996]
[1732329035759,0.27944814,3320.4,3320.0,0.32971674]
[1732329035955,0.27944814,3320.4,3320.0,0.32971675]
[1732329036159,0.27944814,3320.4,3320.0,0.2996]
[1732329036825,0.55,3320.7,3320.0,0.2996]
[1732329037034,0.27965253,3320.6,3320.0,0.2996]
[1732329037371,0.27965253,3320.5,3320.0,0.2996]
[1732329037679,0.82965253,3320.4,3320.0,0.2996]
[1732329037881,0.27965253,3320.3,3320.0,0.2996]
[1732329040363,0.55,3320.2,3320.0,0.2996]
[1732329040558,0.27965253,3320.1,3320.0,0.2996]
[1732329041467,0.55,3320.0,3319.7,0.2996]
[1732329041695,0.27965253,3319.9,3319.7,0.2996]
[1732329042274,0.27965253,3319.8,3319.7,0.2996]
[1732329043005,0.27965253,3319.9,3319.7,0.2996]
[1732329043223,0.55,3321.1,3319.7,0.2996]
[1732329043516,0.7896,3320.8,3319.7,0.2996]
[1732329043663,0.83032017,3320.7,3319.7,0.2996]
[1732329043868,0.55,3320.5,3319.7,0.2996]
[1732329044069,0.28032017,3320.4,3319.7,0.2996]
[1732329044282,0.55,3320.2,3319.7,0.2996]
[1732329044571,0.28032017,3320.1,3319.7,0.2996]
[1732329044795,0.28032017,3320.0,3319.7,0.2996]
[1732329044969,0.28032017,3319.9,3319.7,0.2996]
[1732329045302,0.55,3320.7,3319.7,0.2996]
[1732329045509,0.55,3320.5,3319.7,0.2996]
[1732329045682,0.55,3320.3,3319.7,0.2996]
[1732329045884,0.55,3320.1,3319.7,0.2996]
[1732329046205,0.55,3319.9,3319.7,0.2996]
[1732329046407,0.28035977,3319.8,3319.7,0.2996]
[1732329047066,0.2803902,3319.8,3319.7,0.2996]
[1732329050339,0.28046175,3319.8,3319.7,0.2996]
[1732329064538,1.09376175,3319.8,3319.7,0.2996]
[1732329064740,1.64376175,3319.8,3319.7,0.2996]
[1732329064930,1.64376175,3319.8,3319.2,0.8173]
[1732329064931,1.80813792,3319.8,3319.3,0.2996]
[1732329065135,0.28046175,3319.7,3319.3,0.2996]
[1732329065379,0.28046175,3319.6,3319.3,0.2996]
[1732329065545,0.28046175,3319.5,3319.3,0.2996]
[1732329065748,0.28046175,3319.4,3319.3,0.2996]
[1732329067410,0.28038396,3319.4,3319.3,0.32972495]
[1732329067708,0.28038396,3319.9,3319.3,0.2996]
[1732329067870,0.55,3320.2,3319.3,0.2996]
[1732329068078,0.55,3320.0,3319.3,0.2996]
[1732329068271,0.28037185,3319.9,3319.3,0.2996]
[1732329068472,0.28037185,3319.8,3319.3,0.2996]
[1732329068718,0.55,3320.2,3319.3,0.2996]
[1732329068719,0.28037185,3319.7,3319.3,0.2996]
[1732329068873,0.28037185,3319.6,3319.3,0.2996]
[1732329069079,0.28037185,3319.5,3319.3,0.2996]
[1732329069303,0.28037185,3319.4,3319.3,0.2996]
[1732329075055,0.8233,3319.3,3318.8,0.2996]
[1732329075186,0.28037185,3319.2,3318.8,0.2996]
[1732329075388,0.28037185,3319.1,3318.8,0.2996]
[1732329075756,0.28037185,3319.0,3318.8,0.2996]
[1732329076223,0.28037185,3318.9,3318.4,0.2996]
[1732329076423,0.28037185,3318.8,3318.4,0.2996]
[1732329076596,0.28037185,3318.7,3318.4,0.2996]
[1732329076803,0.28037185,3318.6,3318.4,0.2996]
[1732329077006,0.55,3319.2,3318.4,0.2996]
[1732329077306,0.28012159,3319.1,3318.6,0.2996]
[1732329077621,0.28012159,3319.0,3318.6,0.2996]
[1732329077828,0.28012159,3318.9,3318.6,0.2996]
[1732329078134,0.28012159,3318.8,3318.6,0.2996]
[1732329078288,0.28012159,3319.1,3318.6,0.2996]
[1732329078491,0.28012159,3319.0,3318.6,0.2996]
[1732329078690,0.28012159,3318.9,3318.6,0.2996]
[1732329078900,0.28012159,3318.8,3318.6,0.2996]
[1732329079104,0.28012159,3318.7,3318.6,0.2996]
[1732329079327,0.28012159,3319.1,3318.6,0.2996]
[1732329079536,0.28012159,3319.0,3318.6,0.2996]
[1732329079750,0.28012159,3318.9,3318.6,0.2996]
[1732329079940,0.28012159,3318.8,3318.6,0.2996]
[1732329080089,0.28012159,3318.7,3318.6,0.2996]
[1732329080447,0.55,3319.2,3318.6,0.2996]
[1732329080604,0.28001003,3319.1,3318.6,0.2996]
[1732329080988,0.55,3319.2,3318.6,0.2996]
[1732329080989,0.28001003,3319.0,3318.6,0.2996]
[1732329081142,0.28001003,3319.0,3318.5,0.7873]
[1732329081143,0.01,3321.2,3319.0,0.2996]
[1732329081452,1.11226408,3320.7,3319.4,0.2996]
[1732329081730,0.28006408,3320.6,3319.4,0.32972137]
[1732329081908,0.28006408,3320.5,3319.4,0.32972137]
[1732329082102,0.28006408,3320.4,3319.4,0.2996]
[1732329082325,0.28006408,3320.3,3319.6,0.2996]
[1732329082496,0.28006408,3320.2,3319.8,0.2996]
[1732329082699,0.28006408,3320.1,3319.8,0.2996]
[1732329082934,0.28006408,3320.0,3319.8,0.2996]
[1732329083134,0.01,3321.5,3319.8,0.2996]
[1732329083135,0.28006408,3319.9,3319.8,0.2996]
[1732329083297,0.28006408,3320.1,3319.8,0.2996]
[1732329083498,0.8322,3320.2,3319.4,0.7864]
[1732329083499,0.28006408,3320.0,3319.5,0.2996]
[1732329083723,0.8322,3320.2,3319.5,0.2996]
[1732329083724,0.28006408,3319.9,3319.5,0.2996]
[1732329083924,0.28006408,3319.8,3319.5,0.2996]
[1732329084141,0.28006408,3319.7,3319.5,0.2996]
[1732329084311,0.28006408,3319.6,3319.5,0.2996]
[1732329084512,0.28006408,3319.6,3319.3,0.2996]
[1732329084831,0.28006408,3319.5,3319.3,0.2996]
[1732329085166,0.28006408,3319.4,3319.3,0.2996]
[1732329085550,0.2802104,3319.4,3318.6,0.2996]
[1732329085753,0.8302104,3319.3,3318.6,0.2996]
[1732329086079,0.2802104,3319.2,3318.6,0.2996]
[1732329086228,0.2802104,3319.1,3318.6,0.2996]
[1732329086426,0.2802104,3319.0,3318.6,0.2996]
[1732329086655,0.2802104,3318.9,3318.2,0.2996]
[1732329086867,0.55,3318.7,3318.2,0.2996]
[1732329087156,0.2802104,3318.6,3318.2,0.2996]
[1732329087376,0.2802104,3318.5,3318.2,0.2996]
[1732329087540,0.55,3318.7,3318.2,0.2996]
[1732329087541,0.2802104,3318.6,3318.2,0.2996]
[1732329087740,0.2802104,3318.5,3317.9,0.2996]
[1732329087941,1.1124104,3318.4,3317.9,0.2996]
[1732329088241,0.2802104,3318.3,3317.9,0.2996]
[1732329088634,0.2802104,3318.3,3317.6,0.2996]
[1732329089068,0.27983171,3318.2,3317.6,0.2996]
[1732329089276,0.8322,3318.4,3317.6,3.2996]
[1732329089429,0.27971983,3318.3,3317.6,0.7082]
[1732329089625,0.27971983,3318.3,3317.6,3.2996]
[1732329089863,0.27971983,3318.3,3317.6,0.2996]
[1732329090158,0.27971983,3318.3,3317.6,3.2996]
[1732329091636,0.8322,3318.4,3317.6,3.2996]
[1732329092025,0.27962104,3318.3,3317.6,3.0]
[1732329092229,0.27962104,3318.3,3317.5,0.7864]
[1732329092230,0.27962104,3318.3,3317.7,0.37864]
[1732329092540,0.27962104,3318.3,3317.5,0.7864]
[1732329092541,1.3822,3318.7,3317.6,3.0]
[1732329092746,0.55,3318.5,3317.6,3.0]
[1732329092939,0.2795678,3318.4,3317.7,0.37864]
[1732329093665,0.55,3318.3,3317.6,3.0]
[1732329093827,0.55,3318.1,3317.2,1.1255]
[1732329094027,0.55,3318.1,3317.4,3.0]
[1732329094247,0.55,3318.2,3317.4,0.41255]
[1732329094443,0.55,3318.2,3317.4,3.0]
[1732329094664,0.55,3318.2,3317.2,1.1255]
[1732329095029,0.27943654,3318.1,3317.2,1.1255]
[1732329095336,0.8088,3318.1,3317.2,0.2996]
[1732329095545,0.55,3318.0,3317.3,3.0]
[1732329095926,0.55,3318.0,3316.9,0.7506]
[1732329096127,0.27938644,3317.9,3317.2,3.0]
[1732329096323,0.27938644,3317.9,3316.9,0.7506]
[1732329096324,1.3588,3317.8,3316.4,0.7506]
[1732329096565,0.01,3318.6,3316.4,0.7506]
[1732329096566,0.55,3317.6,3316.4,0.7506]
[1732329096735,1.08818644,3317.7,3316.5,0.2996]
[1732329096736,0.55,3317.4,3316.5,0.2996]
[1732329097349,0.55,3317.6,3316.5,0.2996]
[1732329097882,0.728929,3317.3,3316.6,3.2996]
[1732329098073,0.728929,3317.3,3316.7,0.32996]
[1732329099070,0.55,3318.5,3316.7,0.62956]
[1732329099229,0.27911496,3318.4,3316.7,0.2996]
[1732329099431,0.82911496,3318.3,3316.7,0.2996]
[1732329099668,0.55,3318.1,3316.7,0.2996]
[1732329099868,0.27911496,3318.0,3316.7,0.2996]
[1732329100168,0.55,3317.9,3316.7,0.71015]
[1732329100330,0.55,3317.7,3316.6,3.2996]
[1732329100535,0.55,3317.7,3316.7,3.0]
[1732329100736,0.7892,3317.6,3316.6,0.2996]
[1732329100941,0.55,3317.5,3316.7,3.0]
[1732329101662,0.55,3317.5,3316.6,0.2996]
[1732329102126,0.55,3317.5,3316.8,0.2996]
[1732329102770,0.55,3317.3,3316.8,0.2996]
[1732329103078,0.55,3317.1,3316.6,0.2996]
[1732329103650,0.7892,3317.0,3316.6,0.2996]
[1732329103955,0.60338311,3317.8,3316.6,0.2996]
[1732329103956,0.55,3316.7,3316.6,0.2996]
[1732329105101,0.55,3318.0,3316.4,0.2996]
[1732329105266,0.55,3317.8,3316.4,0.2996]
[1732329105449,0.7892,3317.5,3316.4,0.2996]
[1732329105641,0.7892,3317.2,3316.4,0.2996]
[1732329105841,0.55,3317.1,3316.4,0.2996]
[1732329106073,0.55,3317.1,3316.2,0.2996]
[1732329106268,0.55,3317.1,3316.2,0.68019]
[1732329106582,0.55,3317.1,3316.2,0.2996]
[1732329107078,0.55,3317.1,3316.0,3.8059]
[1732329107079,0.55,3317.1,3316.1,0.2996]
[1732329107264,0.55,3316.9,3316.1,0.2996]
[1732329107467,0.01,3318.1,3316.1,0.2996]
[1732329107468,0.55,3316.7,3316.1,0.2996]
[1732329108276,0.55,3316.7,3315.8,0.2996]
[1732329108691,0.7892,3316.6,3315.8,0.2996]
[1732329108893,0.55,3316.5,3315.8,0.2996]
[1732329112069,0.55,3316.3,3315.7,0.2996]
[1732329112748,0.7781,3316.2,3315.7,0.2996]
[1732329112981,0.55,3316.1,3315.7,0.2996]
[1732329113202,0.7781,3316.0,3315.3,0.2996]
[1732329115355,0.7828,3316.3,3315.5,0.2996]
[1732329116265,0.7828,3317.4,3315.5,0.2996]
[1732329116492,3.01,3317.9,3315.5,0.2996]
[1732329116493,0.7828,3317.2,3315.8,0.2996]
[1732329116799,0.55,3316.8,3315.8,0.2996]
[1732329116982,0.73828,3316.8,3315.8,0.2996]
[1732329117171,0.18828,3316.8,3315.8,0.2996]
[1732329117511,0.7828,3316.9,3315.8,0.2996]
[1732329117794,0.7828,3316.9,3316.0,0.2996]
[1732329118872,0.55,3316.8,3316.0,0.2996]
[1732329119186,0.55,3316.6,3315.6,3.2996]
[1732329119382,0.55,3316.6,3315.8,0.2996]
[1732329119860,0.7547,3316.5,3315.8,0.2996]
[1732329120196,0.55,3316.4,3315.8,0.2996]
[1732329120488,0.55,3316.4,3315.7,0.2996]
[1732329120896,0.7547,3316.3,3315.7,0.2996]
[1732329121259,0.7547,3316.3,3315.8,0.2996]
[1732329122081,0.7547,3316.3,3315.8,0.2496]
[1732329122298,0.72899837,3316.3,3315.3,0.1996]
[1732329122600,0.55,3316.2,3315.3,0.1996]
[1732329123393,0.55,3316.2,3315.1,0.1996]
[1732329124171,0.55,3316.0,3315.1,0.1996]
[1732329124372,0.27924189,3315.9,3314.8,0.1996]
[1732329124573,0.55,3315.8,3314.8,0.1996]
[1732329124814,0.27921408,3315.7,3314.8,0.1496]
[1732329125018,0.55,3315.6,3314.8,0.1496]
[1732329125220,0.55,3315.4,3314.8,0.1496]
[1732329125423,0.7547,3315.3,3314.3,0.0996]
[1732329126287,0.7547,3315.3,3314.1,0.0996]
[1732329126812,0.7547,3315.3,3314.3,0.0996]
[1732329127117,0.7547,3315.1,3314.3,0.0996]
[1732329127493,0.55,3314.8,3313.8,0.2996]
[1732329127704,0.7547,3314.7,3313.8,0.2996]
[1732329128419,0.55,3314.6,3313.8,0.2996]
[1732329128726,0.55,3314.6,3313.9,0.2996]
[1732329129624,0.55,3314.6,3313.5,0.2996]
[1732329129862,0.55,3314.6,3313.5,0.32977515]
[1732329130122,0.7547,3314.7,3313.7,0.2996]
[1732329131419,0.55,3314.6,3313.7,0.2996]
[1732329131975,0.7547,3314.5,3313.4,0.7939]
[1732329132176,0.55,3314.4,3313.5,0.2996]
[1732329132451,0.73547,3314.4,3313.5,0.2996]
[1732329133819,0.18547,3314.4,3313.5,0.2996]
[1732329134121,0.7547,3314.5,3313.5,0.2996]
[1732329137232,0.7547,3314.5,3313.2,0.2996]
[1732329137532,0.7746,3314.1,3312.8,0.875]
[1732329137736,0.01,3314.8,3312.8,0.875]
[1732329137737,0.55,3313.8,3312.8,0.875]
[1732329137896,0.7746,3313.7,3312.8,0.875]
[1732329138605,0.7746,3313.7,3313.5,0.00302]
[1732329139239,0.803,3315.2,3313.5,3.30262]
[1732329139395,0.803,3315.2,3313.7,0.7786]
[1732329139996,0.803,3315.2,3313.7,3.7786]
[1732329140192,0.803,3315.2,3313.7,0.7786]
[1732329140591,0.59220422,3315.6,3313.7,3.7786]
[1732329140592,0.803,3315.0,3313.7,3.7786]
[1732329140918,0.803,3315.0,3313.8,0.38087721]
[1732329141124,0.803,3315.0,3313.9,0.03017211]
[1732329141294,0.803,3316.3,3314.2,3.0]
[1732329141494,0.803,3316.1,3314.4,0.7786]
[1732329141807,0.803,3316.1,3314.5,0.03016738]
[1732329142214,0.803,3316.1,3314.8,0.2996]
[1732329142595,0.828,3317.8,3315.2,0.2996]
[1732329142596,0.5890213,3317.2,3315.2,0.2996]
[1732329142733,0.803,3316.4,3315.3,0.03015752]
[1732329143037,0.803,3316.4,3315.1,0.2996]
[1732329143233,0.803,3316.4,3315.3,0.2996]
[1732329144141,0.803,3316.4,3315.4,0.2996]
[1732329144341,0.55,3316.3,3315.4,0.2996]
[1732329144537,0.803,3316.0,3315.4,0.2996]
[1732329144737,0.803,3315.8,3314.9,0.2996]
[1732329145473,0.803,3315.8,3314.7,0.2996]
[1732329148380,0.803,3317.0,3315.0,0.2996]
[1732329148694,0.803,3316.8,3315.0,0.2996]
[1732329148897,0.803,3316.6,3315.1,3.0]
[1732329149055,0.803,3316.6,3315.2,0.32976142]
[1732329149390,0.803,3316.6,3315.2,0.66273756]
[1732329149592,0.803,3316.6,3315.4,0.2996]
[1732329152057,0.61046302,3317.4,3315.4,0.2996]
[1732329152058,0.803,3316.4,3315.4,0.2996]
[1732329152254,0.803,3316.2,3315.5,0.2996]
[1732329152457,0.55,3315.9,3315.5,0.2998]
[1732329152684,0.803,3315.8,3315.5,0.2998]
[1732329153160,0.55,3315.7,3315.5,0.2998]
[1732329153365,0.7628,3315.6,3314.3,0.2998]
[1732329153869,0.7628,3315.6,3314.6,0.2998]
[1732329154057,0.7628,3315.6,3314.6,0.32996643]
[1732329154768,0.7628,3315.6,3314.6,3.32996643]
[1732329154985,0.7628,3315.6,3314.8,0.2998]
[1732329155275,0.01,3317.1,3314.8,0.2998]
[1732329155276,0.7628,3316.5,3314.8,0.2998]
[1732329155479,0.7628,3316.3,3314.8,0.2998]
[1732329155689,0.70910849,3316.2,3314.8,0.2998]
[1732329155850,0.70910849,3316.2,3313.7,0.37282731]
[1732329155851,0.55,3316.2,3315.0,0.2998]
[1732329156056,0.55,3316.2,3315.1,0.0301615]
[1732329156397,0.55,3316.2,3315.0,0.2998]
[1732329156693,0.55,3316.2,3315.0,0.70491]
[1732329157362,0.7628,3316.1,3315.0,0.2998]
[1732329157858,0.55,3316.0,3315.0,0.2998]
[1732329158060,0.55,3315.8,3315.0,0.2998]
[1732329158791,0.55,3315.6,3314.7,0.2998]
[1732329159696,0.55,3315.6,3314.4,0.2998]
[1732329160193,0.8104,3315.5,3314.4,0.2998]
[1732329160867,0.55,3315.4,3314.4,0.2998]
[1732329162419,0.55,3315.4,3314.6,0.2998]
[1732329164896,0.8104,3315.5,3314.6,0.2998]
[1732329165789,0.8104,3316.6,3314.7,1.1206]
[1732329166019,1.08865492,3316.5,3314.8,0.03016491]
[1732329166211,0.27825492,3316.4,3314.7,1.1206]
[1732329166420,0.8104,3316.3,3314.7,1.1206]
[1732329166730,0.27825492,3316.2,3314.9,0.2998]
[1732329166898,0.27825492,3316.2,3314.0,0.61655277]
[1732329166899,0.8104,3316.3,3315.1,0.2998]
[1732329167097,0.2783641,3316.2,3315.1,0.2998]
[1732329168739,0.55,3316.1,3315.1,0.2998]
[1732329168937,1.0887641,3316.0,3315.1,0.2998]
[1732329169084,1.0887641,3316.0,3314.6,1.046779]
[1732329169085,0.8283641,3315.9,3314.9,0.2998]
[1732329169430,0.55,3315.7,3314.9,0.2998]
[1732329169613,0.2783641,3315.6,3314.9,0.2998]
[1732329169810,0.8104,3315.4,3314.9,0.2998]
[1732329170139,0.2783641,3315.3,3315.0,0.2998]
[1732329171096,0.2783641,3315.3,3314.7,0.2998]
[1732329172902,0.2783641,3315.2,3314.7,0.2998]
[1732329173094,0.55,3315.2,3314.7,0.2998]
[1732329173422,0.2783641,3315.1,3314.7,0.2998]
[1732329173608,0.2783641,3315.0,3314.7,0.2998]
[1732329173812,0.2783641,3314.9,3314.7,0.2998]
[1732329174023,0.55,3315.1,3314.7,0.2998]
[1732329174335,0.8101,3314.8,3314.7,0.2998]
[1732329174491,1.6384641,3314.8,3314.7,0.2998]
[1732329175533,1.6384641,3314.8,3314.6,1.046779]
[1732329175835,0.2783641,3314.7,3314.6,1.046779]
[1732329176192,0.8283641,3314.7,3314.6,1.046779]
[1732329176417,1.04721051,3314.7,3314.6,1.046779]
[1732329177500,1.85731051,3314.7,3314.6,1.046779]
[1732329177696,1.3601,3314.7,3314.6,1.046779]
[1732329177998,1.63873014,3314.7,3314.6,1.046779]
[1732329178221,1.63870447,3314.7,3314.6,1.046779]
[1732329179308,0.82860447,3314.7,3314.6,1.046779]
[1732329179529,0.8021,3315.9,3314.6,1.046779]
[1732329179699,0.27850327,3315.8,3314.6,1.046779]
[1732329179905,1.08060327,3315.7,3314.6,1.046779]
[1732329180116,0.27850327,3315.6,3314.6,1.046779]
[1732329180403,0.27857394,3315.5,3314.6,1.046779]
[1732329180731,0.8021,3315.9,3314.8,0.2998]
[1732329180898,0.27858617,3315.8,3314.8,0.2998]
[1732329181538,0.27858617,3315.8,3314.9,0.03016406]
[1732329181748,0.27858617,3315.7,3315.1,0.2998]
[1732329182104,0.8021,3316.2,3315.1,0.2998]
[1732329182307,0.27877143,3316.1,3315.1,0.2998]
[1732329182859,0.27877143,3316.0,3315.1,0.2998]
[1732329183149,0.82877143,3315.9,3315.1,0.2998]
[1732329183308,0.55,3315.7,3315.1,0.2998]
[1732329183644,0.27877143,3315.6,3315.1,0.2998]
[1732329183999,0.2787881,3315.5,3315.1,0.2998]
[1732329184204,0.55,3315.7,3315.1,0.2998]
[1732329184418,0.27882326,3315.6,3315.1,0.2998]
[1732329186008,0.55,3315.4,3314.7,0.2998]
[1732329186352,0.27882326,3315.3,3314.7,0.2998]
[1732329187008,0.44191559,3315.3,3314.7,0.2998]
[1732329187209,0.82882326,3315.2,3314.7,0.2998]
[1732329187647,0.2789521,3315.1,3314.7,0.2998]
[1732329188637,0.2789521,3315.0,3314.7,0.2998]
[1732329188840,0.2789521,3314.9,3314.7,0.2998]
[1732329189162,0.2789521,3314.8,3314.7,0.2998]
[1732329189645,0.27916839,3314.8,3314.7,0.2998]
[1732329189853,0.55,3315.2,3314.7,0.2998]
[1732329190036,0.27917659,3315.1,3314.9,0.2998]
[1732329190243,0.55,3315.7,3314.9,0.2998]
[1732329190561,0.55,3315.5,3314.9,0.2998]
[1732329190708,0.55,3315.3,3314.9,0.2998]
[1732329190914,0.27916991,3315.2,3314.9,0.2998]
[1732329191158,0.19435162,3315.6,3314.6,1.046779]
[1732329191159,0.55,3315.3,3315.0,0.2998]
[1732329191453,0.2788712,3315.2,3315.0,0.2998]
[1732329192009,1.3521,3315.1,3314.7,0.2998]
[1732329192227,0.44196832,3315.0,3314.7,0.2998]
[1732329192423,0.2788712,3314.9,3314.7,0.2998]
[1732329192727,0.59141623,3315.8,3314.7,1.1314]
[1732329192728,0.55,3315.4,3314.7,1.1314]
[1732329192913,0.27880443,3315.3,3314.7,0.2998]
[1732329193956,0.27880443,3315.2,3314.7,0.2998]
[1732329194154,0.27880443,3315.1,3314.7,0.2998]
[1732329194313,0.27880443,3315.0,3314.7,0.2998]
[1732329194519,0.55,3315.4,3314.7,0.2998]
[1732329194715,0.27878456,3315.3,3314.7,0.2998]
[1732329195335,0.27878456,3315.3,3314.6,1.046779]
[1732329195336,0.27878456,3315.3,3314.9,0.2998]
[1732329195629,0.7696,3316.1,3314.9,0.2998]
[1732329195960,0.27861115,3316.0,3314.9,0.2998]
[1732329196113,0.27861115,3315.9,3315.1,0.2998]
[1732329196317,0.27861115,3315.8,3315.1,0.2998]
[1732329196556,0.27861115,3315.7,3315.1,0.2998]
[1732329196727,0.27861115,3315.6,3315.3,0.2998]
[1732329197053,0.7696,3316.4,3315.3,0.2998]
[1732329197054,1.36746066,3316.4,3315.3,0.2998]
[1732329197259,0.27867978,3316.3,3315.3,0.2998]
[1732329197563,0.44329382,3316.2,3315.3,0.2998]
[1732329197759,0.27867978,3316.1,3315.3,0.2998]
[1732329198055,0.27867978,3316.0,3315.3,0.2998]
[1732329198258,0.27894649,3315.9,3315.3,0.2998]
[1732329198552,0.27894649,3315.8,3315.3,0.2998]
[1732329198768,0.16461404,3316.2,3315.3,0.2998]
[1732329198769,0.27894649,3315.7,3315.3,0.2998]
[1732329198980,0.27894649,3315.6,3315.3,0.2998]
[1732329199282,0.27894649,3315.5,3315.3,0.2998]
[1732329199438,0.55,3316.1,3315.3,0.2998]
[1732329199634,0.27893937,3316.0,3315.3,0.2998]
[1732329199864,0.27893937,3315.9,3315.3,0.2998]
[1732329200067,0.27893937,3315.8,3315.3,0.2998]
[1732329200249,0.27893937,3315.7,3315.3,0.2998]
[1732329200457,0.27893937,3315.6,3315.3,0.2998]
[1732329200658,0.27893937,3315.5,3315.3,0.2998]
[1732329200841,0.27893937,3316.0,3315.3,0.2998]
[1732329201175,0.27894349,3315.9,3315.3,0.2998]
[1732329201354,0.27894349,3315.8,3315.3,0.2998]
[1732329201555,0.55,3316.1,3315.3,0.2998]
[1732329201759,0.27891554,3316.0,3315.3,0.2998]
[1732329201943,0.27891554,3315.9,3315.3,0.2998]
[1732329202283,0.27891554,3315.8,3315.3,0.2998]
[1732329202642,0.27891554,3315.7,3315.3,0.2998]
[1732329202796,0.27891554,3316.1,3315.5,0.2998]
[1732329202972,0.27882259,3316.0,3315.5,0.2998]
[1732329203294,0.27882259,3315.9,3315.5,0.2998]
[1732329203585,1.36746066,3316.4,3315.5,0.2998]
[1732329203586,0.27882259,3315.8,3315.5,0.2998]
[1732329203765,0.27882259,3315.7,3315.5,0.2998]
[1732329203960,1.36746066,3316.4,3315.5,0.2998]
[1732329204278,0.27866672,3316.3,3315.5,0.2998]
[1732329204587,0.44327946,3316.2,3315.5,0.2998]
[1732329204885,0.27866672,3316.1,3315.5,0.2998]
[1732329205101,0.27866672,3316.0,3315.5,0.2998]
[1732329205387,0.16461274,3316.2,3315.5,0.2998]
[1732329205585,0.27864201,3315.9,3315.5,0.2998]
[1732329205791,0.27864201,3315.8,3315.5,0.2998]
[1732329206007,0.27864201,3316.1,3315.5,0.2998]
[1732329206290,0.27864201,3316.0,3315.5,0.2998]
[1732329206473,0.27864201,3315.9,3315.5,0.2998]
[1732329206673,0.27864201,3315.8,3315.5,0.2998]
[1732329206887,0.27864201,3315.7,3315.5,0.2998]
[1732329207057,1.36746066,3316.4,3315.5,0.2998]
[1732329207258,0.27871844,3316.3,3315.5,0.2998]
[1732329207469,0.27871844,3316.2,3315.5,0.2998]
[1732329207670,0.27871844,3316.1,3315.5,0.2998]
[1732329207893,0.27871844,3316.0,3315.5,0.2998]
[1732329208096,0.27871844,3315.9,3315.5,0.2998]
[1732329208308,0.27871844,3315.8,3315.5,0.2998]
[1732329208457,0.27871844,3315.7,3315.5,0.2998]
[1732329208663,0.27871844,3315.6,3315.5,0.2998]
[1732329208994,0.27879426,3315.6,3315.5,0.2998]
[1732329209462,0.27887311,3315.6,3315.5,0.2998]
[1732329209871,0.27887311,3316.1,3315.5,0.2998]
[1732329210089,0.27887311,3316.0,3315.5,0.2998]
[1732329210296,0.27887311,3315.9,3315.5,0.2998]
[1732329210603,0.27887311,3315.8,3315.5,0.2998]
[1732329210775,0.27887311,3315.7,3315.5,0.2998]
[1732329211097,0.27887311,3315.6,3315.5,0.2998]
[1732329211500,0.27887311,3316.3,3315.5,0.2998]
[1732329211700,0.27887311,3316.2,3315.5,0.2998]
[1732329212008,0.7898,3316.0,3315.5,0.2998]
[1732329212202,0.27887311,3315.9,3315.5,0.2998]
[1732329212415,0.27887311,3315.8,3315.5,0.2998]
[1732329212700,0.27887311,3315.7,3315.5,0.2998]
[1732329212891,0.7898,3316.0,3315.5,0.2998]
[1732329213204,0.27896344,3315.9,3315.6,0.2998]
[1732329213399,0.27896344,3315.8,3315.6,0.2998]
[1732329213574,0.27896344,3315.7,3315.6,0.2998]
[1732329214184,0.27896344,3315.7,3315.1,0.2998]
[1732329214393,0.27896344,3315.6,3315.1,0.2998]
[1732329214575,0.27896344,3315.5,3315.1,0.2998]
[1732329214909,0.27896344,3315.4,3315.1,0.2998]
[1732329215118,0.27896344,3315.3,3315.1,0.2998]
[1732329215267,0.8332,3316.6,3315.2,0.2998]
[1732329215470,0.27901377,3316.5,3315.6,0.2998]
[1732329215770,0.27901377,3316.4,3315.6,0.2998]
[1732329216006,0.27901377,3316.3,3315.6,0.2998]
[1732329216203,0.27901377,3316.2,3315.6,0.2998]
[1732329216563,0.27901377,3316.1,3315.6,0.2998]
[1732329216770,0.27901377,3316.0,3315.6,0.03015861]
[1732329217083,0.7702,3317.7,3316.3,0.2998]
[1732329217283,0.27927456,3317.6,3316.5,0.2998]
[1732329217490,0.27927456,3317.5,3316.5,0.2998]
[1732329217720,0.27927456,3317.4,3316.5,0.2998]
[1732329217902,0.27927456,3317.3,3316.5,0.2998]
[1732329218098,0.27927456,3317.2,3316.5,0.2998]
[1732329218300,0.27927456,3317.1,3316.5,0.2998]
[1732329218529,0.27927456,3317.0,3316.5,0.2998]
[1732329218700,0.27927456,3316.9,3316.5,0.2998]
[1732329218888,0.55,3317.6,3316.5,0.2998]
[1732329219083,0.27888155,3317.5,3316.5,0.2998]
[1732329219328,0.27888155,3317.4,3316.5,0.2998]
[1732329219637,0.27888155,3317.3,3316.5,0.2998]
[1732329219793,0.27888155,3317.5,3316.5,0.2998]
[1732329219992,0.55,3317.6,3316.5,0.2998]